Cogmind - Beta 13 @@@ ROGUE MODE // 2024.05.15 @ 12:40:48 Player: McFluffinkins Result: Destroyed by G-34 Mercenary with Small Laser Performance ------------- Evolutions (0) 0 Regions Visited (2) 400 Robots Destroyed (19) 95 Value Destroyed (433) 433 Prototype IDs (2) 40 Alien Tech Used (0) 0 Bonus (0) 0 TOTAL SCORE: 968 Bonus ------- None Cogmind --------- Core Integrity 0/250 Matter 284/300 Energy 310/310 System Corruption 1% Temperature Warm (167) Movement Rolling (115) Ox1 Location -10/Mines Parts ------- > --- POWER (1) -------- Fission Core > --- PROPULSION (2) --- Compact Wheel Compact Wheel > --- UTILITY (2) ------ High-capacity Storage Unit Improved Light Armor Plating > --- WEAPON (2) ------- Spread Laser Grenade Launcher > --- INVENTORY (20) --- Light Ion Engine Light Ion Engine Light Treads Light Treads Flight Unit VTOL Module VTOL Module VTOL Module High-capacity Storage Unit Large Battery (200) Small Matter Pod (50) Structural Scanner Sensor Array Launcher Guidance Computer Hardened Light Armor Plating Autogun Autogun Light Cannon Grenade Launcher Datajack Peak State ------------ > --- POWER ------------ Fission Core > --- PROPULSION ------- Light Treads Light Treads > --- UTILITY ---------- High-capacity Storage Unit Improved Light Armor Plating > --- WEAPON ----------- Spread Laser Grenade Launcher > --- INVENTORY -------- Light Ion Engine Light Ion Engine Light Treads Light Treads Flight Unit VTOL Module VTOL Module VTOL Module High-capacity Storage Unit Large Battery Small Matter Pod Structural Scanner Sensor Array Launcher Guidance Computer Hardened Light Armor Plating Autogun Autogun Light Cannon Grenade Launcher Datajack [Rating: 16] Favorites ----------- Power Light Ion Engine Engine Light Ion Engine Power Core Fission Core Propulsion Light Treads Treads Light Treads Wheel Compact Wheel Utility High-capacity Storage Unit Storage High-capacity Storage Unit Processor Signal Interpreter Protection Hardened Light Armor Plating Weapon Light Cannon Energy Gun Medium Laser Ballistic Gun Assault Rifle Ballistic Cannon Light Cannon Launcher Grenade Launcher Special Melee Weapon Datajack Build | -11 -10 -10 ------- Run | Yrd Mat Min Slots Evolved . | . . . Power . | . . . Propulsion . | . . . Utility . | . . . Weapon . | . . . Parts Attached 26 | 6 13 7 Power 3 | 1 1 1 Engine 2 | 1 1 . Core 1 | . . 1 Reactor . | . . . Propulsion 6 | 2 2 2 Treads 2 | . 2 . Leg . | . . . Wheel 4 | 2 . 2 Hover . | . . . Flight . | . . . Utility 6 | 1 3 2 Device . | . . . Storage 3 | 1 2 . Processor 1 | . 1 . Hackware . | . . . Protection 2 | . . 2 Artifact . | . . . Weapon 11 | 2 7 2 Energy Gun 3 | 1 1 1 Energy Cannon . | . . . Ballistic Gun 2 | 1 1 . Ballistic Cannon 2 | . 2 . Launcher 3 | . 2 1 Special Weapon . | . . . Impact Weapon . | . . . Slashing Weapon . | . . . Piercing Weapon . | . . . Special Melee Weapon 1 | . 1 . Unidentified Prototypes . | . . . Parts Lost 2 | . 2 . Power . | . . . Propulsion 1 | . 1 . Utility . | . . . Weapon 1 | . 1 . Highest Loss Streak 2 | . 2 . To Critical Strikes . | . . . Average Slot Usage (%) 98 | . 98 100 Engine 13 | . 14 8 Treads 20 | . 19 23 Wheel 7 | . 7 4 Storage 14 | . 14 14 Processor 11 | . 12 2 Protection 1 | . . 11 Energy Gun 6 | . 6 8 Ballistic Gun 3 | . 4 . Ballistic Cannon 15 | . 16 11 Launcher 1 | . . 8 Naked Turns . | . . . Heaviest Build 61 | 12 49 61 Greatest Support 40 | 26 40 40 Greatest Overweight (x) 4 | 2 4 3 Average Overweight (x) . | . . 1 Largest Inventory Capacity 20 | 8 20 20 Average Capacity 18 | 7 18 20 Most Carried 20 | 7 20 20 Average Carried 17 | 4 17 19 Final Capacity 20 | 8 20 20 Final Carried 20 | 4 20 20 Class Distribution -------------------- 97% | Mutant Dominant Class ---------------- Mutant | -10/Materials Mutant | -10/Mines Resources | -11 -10 -10 ----------- Run | Yrd Mat Min Matter Collected 783 | 190 350 243 Remotely . | . . . Salvage Created 319 | . 279 40 Parts 26 | . 23 3 Haulers Intercepted 2 | . 2 . Recyclers Shooed . | . . . Parts Field Recycled . | . . . Retrieved Matter . | . . . Parts Self-Destructed . | . . . Prevented . | . . . Kills | -11 -10 -10 ------- Run | Yrd Mat Min Combat Hostiles Destroyed 10 | . 8 2 Guns 7 | . 6 1 AOE 3 | . 2 1 Classes Destroyed 9 | . 8 1 Worker 1 | . 1 . Builder 1 | . 1 . Hauler 2 | . 2 . Mechanic 1 | . 1 . Operator 1 | . 1 . Watcher 3 | . 3 . Swarmer 3 | . 3 . Grunt 6 | . 5 1 Demolisher 1 | . . 1 Best Kill Streak 6 | . 6 1 Combat Bots Only 3 | . 3 1 Max Kills in Single Turn 2 | . 2 1 Gunslinging 1 | . 1 . Exploded 1 | . 1 1 Melee . | . . . Uniques/NPCs Destroyed . | . . . Combat | -11 -10 -10 -------- Run | Yrd Mat Min Hostile Shots Fired 61 | . 42 19 Missed 12 | . 11 1 Damage Taken 996 | . 477 519 Core 255 | . 123 132 Absorbed by Shields . | . . . Core Remaining (%) 100 | 100 . . Volleys Fired 42 | . 32 10 Largest 2 | . 2 2 Hottest 100 | . 85 100 Shots Fired 81 | . 64 17 Gun 44 | . 35 9 Cannon 23 | . 19 4 Launcher 14 | . 10 4 Special . | . . . Kinetic 39 | . 35 4 Thermal 28 | . 19 9 Explosive 14 | . 10 4 Electromagnetic . | . . . Robot Hit Streak 6 | . 6 5 Robot Miss Streak 5 | . 3 5 Penetration Max . | . . . Secondary Targets 1 | . 1 . Max Gunslinging Chain 1 | . 1 . Shots Hit Robots 43 | . 30 13 Core Hits 40 | . 27 13 Critical Kills . | . . . Critical Parts Destroyed . | . . . Critical Strikes . | . . . Melee Attacks . | . . . Impact . | . . . Slashing . | . . . Piercing . | . . . Sneak Attacks . | . . . Combat Hostiles . | . . . Follow-up Attacks . | . . . Damage Inflicted 1407 | . 1161 246 Guns 305 | . 220 85 Cannons 226 | . 192 34 Explosions 876 | . 749 127 Melee . | . . . Ramming . | . . . Kinetic 308 | . 274 34 Thermal 223 | . 138 85 Explosive 876 | . 749 127 Electromagnetic . | . . . Impact . | . . . Slashing . | . . . Piercing . | . . . Highest Corruption 1 | . 1 1 Average Corruption 1 | . 1 1 Corruption Purged . | . . . Corruption Blocked . | . . . Effects 18 | . 15 3 Message Errors 1 | . 1 . Matter Fused 5 | . 3 2 Heat Flow Errors 4 | . 4 . Energy Discharges 1 | . . 1 Data Loss (minor) 2 | . 2 . Data Loss (major) 1 | . 1 . Misfires 3 | . 3 . Alerts 1 | . 1 . Overload Shots . | . . . Overflow Damage 85 | . 78 7 Projectiles . | . . . Explosions 85 | . 78 7 Melee . | . . . Knockbacks . | . . . Impact . | . . . Kinetic . | . . . Secondary . | . . . Self-Inflicted Damage 82 | . 82 . Shots 3 | . 3 . Rammed . | . . . Targets Rammed . | . . . Kicked . | . . . Crushed . | . . . Highest Temperature 275 | . 275 237 Average Temperature 65 | . 51 109 Received Heat Transfer 261 | . 177 84 Siege Activations . | . . . Robots Corrupted . | . . . Combat Hostiles . | . . . Parts Fried . | . . . Impact Corruptions . | . . . Robots Melted . | . . . Combat Hostiles . | . . . Parts Melted . | . . . Heat Transferred 512 | . 407 105 Parts Sabotaged . | . . . Parts Stolen . | . . . Parts Stripped . | . . . Power Chain Reactions . | . . . Alert | -11 -10 -10 ------- Run | Yrd Mat Min Peak Influence 230 | . 230 79 Initial . | . . . Average 74 | . 82 23 Maximum Alert Level 1 | . 1 . Low Security (%) 85 | 100 83 100 Level 1 14 | . 16 . Level 2 . | . . . Level 3 . | . . . Level 4 . | . . . Level 5 . | . . . High Security . | . . . Max Security . | . . . Squads Dispatched 1 | . 1 . Investigation 1 | . 1 . Extermination . | . . . Reinforcement . | . . . Assault . | . . . Garrison . | . . . Intercept . | . . . Searches Triggered . | . . . Construction Impeded . | . . . Haulers Reinforced . | . . . Active Scanning Responses . | . . . Cargo Convoy Interrupts . | . . . Stealth | -11 -10 -10 --------- Run | Yrd Mat Min Distress Signals 1 | . 1 . Communications Jammed . | . . . Distress Signals . | . . . Times Spotted 18 | . 13 5 Peak Tracking Total 5 | . 5 2 Tactical Retreats 1 | . 1 . Traps | -11 -10 -10 ------- Run | Yrd Mat Min Traps Triggered 2 | . 2 . Indirectly . | . . . Trap Hack Attempts . | . . . Triggered . | . . . Disarmed . | . . . Reprogrammed . | . . . Reused . | . . . Traps Extracted . | . . . Installed . | . . . Triggered . | . . . Machines | -11 -10 -10 ---------- Run | Yrd Mat Min Machines Disabled 2 | . 2 . Max in Single Turn 1 | . 1 . Machines Repaired . | . . . Machines Dismantled . | . . . Machines Sabotaged . | . . . Overloaded Fab Kills . | . . . Hacking | -11 -10 -10 --------- Run | Yrd Mat Min Machines Accessed 8 | . 8 . Terminals 7 | . 7 . Fabricators . | . . . Repair Stations . | . . . Recycling Units 1 | . 1 . Scanalyzers . | . . . Garrison Access . | . . . Total Hacks 22 | . 22 . Successful 12 | . 12 . Failed 10 | . 10 . Catastrophic 1 | . 1 . Database Lockouts . | . . . Manual 5 | . 5 . Terminals 20 | . 20 . Fabricators . | . . . Repair Stations . | . . . Recycling Units 2 | . 2 . Scanalyzers . | . . . Garrison Access . | . . . Terminal Hacks 10 | . 10 . Robot Analysis 1 | . 1 . Prototype ID Bank 1 | . 1 . Branch Access Points 1 | . 1 . Locate Traps 1 | . 1 . Security Status 1 | . 1 . Surveillance Status 1 | . 1 . Recall Investigation 1 | . 1 . Hauler Manifests 1 | . 1 . Zone Layout 2 | . 2 . Fabricator Hacks . | . . . Repair Station Hacks . | . . . Recycling Unit Hacks 2 | . 2 . Report Inventory 1 | . 1 . Retrieve Matter 1 | . 1 . Scanalyzer . | . . . Garrison Access Hacks . | . . . Unauthorized Hacks . | . . . Terminals . | . . . Fabricators . | . . . Repair Stations . | . . . Recycling Units . | . . . Scanalyzers . | . . . Garrison Access . | . . . Data Cores Recovered 1 | . 1 . Used . | . . . Hacking Detections 7 | . 7 . Full Trace Events 2 | . 2 . Feedback Events . | . . . Feedback Blocked . | . . . Robot Schematics Acquired . | . . . Robots Built . | . . . Authchips . | . . . Time . | . . . Total Robot Build Rating . | . . . Part Schematics Acquired . | . . . Parts Built . | . . . Authchips . | . . . Time . | . . . Total Part Build Rating . | . . . Parts Repaired . | . . . Time . | . . . Parts Recycled . | . . . Recycled Matter . | . . . Retrieved Matter 20 | . 20 . Retrieved Components . | . . . Parts Scanalyzed . | . . . Part Schematics Acquired . | . . . Parts Damaged . | . . . Bothacking | -11 -10 -10 ------------ Run | Yrd Mat Min Used RIF Installer . | . . . Robots Hacked . | . . . Non-combat . | . . . Combat . | . . . Robot Hacks Applied . | . . . Relay Couplers Released . | . . . Fabnet Peak Effective % . | . . . Robots Rewired . | . . . Allies Hacked . | . . . Hacks Repelled . | . . . Allies | -11 -10 -10 -------- Run | Yrd Mat Min Total Allies . | . . . Largest Group . | . . . Highest-Rated Group . | . . . Highest-Rated Ally . | . . . Total Orders . | . . . Ally Attacks . | . . . Total Damage . | . . . Kills . | . . . Allies Corrupted . | . . . Allies Melted . | . . . Intel | -11 -10 -10 ------- Run | Yrd Mat Min Robot Analysis Total 1 | . 1 . Derelict Logs Recovered . | . . . Drone Launches . | . . . Drone Recoveries . | . . . Exploration | -11 -10 -10 ------------- Run | Yrd Mat Min Turns Passed 2043 | 58 1796 189 Spaces Moved 1024 | 52 901 71 Core 24 | 24 . . Treads 554 | . 502 52 Legs . | . . . Wheels 446 | 28 399 19 Hover . | . . . Flight . | . . . Fastest Speed 50 | 50 90 115 Average Speed 175 | 84 178 206 Slowest Speed 240 | 150 240 240 Overloaded Moves . | . . . Propulsion Burnouts . | . . . Robots Hopped . | . . . Cave-ins Triggered . | . . . Exploration Rate (%) 40 | 3 91 28 Regions Visited 2 Branch Regions 1 Pre-discovered Areas . | . . . Known Exits Taken 1 | . 1 . Unknown Exits Taken 1 | 1 . . Scrap Searched . | . . . Spaces Dug . | . . . Terrain Destroyed 96 | . 81 15 Melee . | . . . Projectile . | . . . AOE 96 | . 81 15 Terrain Rammed . | . . . Walls Destroyed . | . . . Machines Disabled . | . . . Actions | -11 -10 -10 --------- Run | Yrd Mat Min Total 1192 | 64 1031 97 Wait 31 | . 31 . Move 1022 | 51 900 71 Hop . | . . . Pick Up 46 | 7 36 3 Fast Attach 8 | 3 2 3 Attach 9 | 3 5 1 Detach . | . . . Swap 9 | . 6 3 Drop 25 | . 19 6 Fire 42 | . 32 10 Melee . | . . . Ram . | . . . Kick . | . . . Crush . | . . . Escape Stasis . | . . . Rewire . | . . . Trap . | . . . Miscellaneous . | . . . Route ------- -11/Scrapyard -10/Materials (discovered 5 exits: *Mat x3 / *Min x2) -10/Mines History --------- Turn | Location | Event 14 | -11/Scrapyard | Discovered new exit (range 15) 59 | -11/Scrapyard | Entered Materials 173 | -10/Materials | Discovered new exit (range 13) 227 | -10/Materials | Identified exit to Mines 313 | -10/Materials | Build established: Mutant 371 | -10/Materials | Discovered new exit (range 6) 375 | -10/Materials | Identified exit to Materials 988 | -10/Materials | Discovered exit to Materials (range 9) 1335 | -10/Materials | Discovered exit to Materials (range 10) 1855 | -10/Materials | Entered Mines 1856 | -10/Mines | Assembled infested the area 1861 | -10/Mines | Assisted by a Guerilla fighting off Assembled 1927 | -10/Mines | Core integrity fell below 50% 1933 | -10/Mines | Core integrity fell below 20% 2044 | -10/Mines | Destroyed by G-34 Mercenary with Small Laser Last Messages --------------- 01993_ U-05 Engineer lays Concrete. 01996_ Dropped Hrd. Light Armor Plating. 01997_ Acquired Imp. Light Armor Plating. 01997_ U-05 Engineer lays Concrete. 02001_ Acquired 14 matter. 02001_ U-05 Engineer lays Concrete. 02003_ Acquired 133 matter. 02004_ U-05 Engineer lays Concrete. 02010_ Dropped Lgt. Treads. 02010_ U-05 Engineer builds a Wall. 02011_ Acquired Com. Wheel. 02011_ U-05 Engineer builds a Wall. 02012_ Dropped Lgt. Treads. 02014_ Acquired Com. Wheel. 02014_ U-05 Engineer lays Concrete. 02016_ U-05 Engineer builds a Wall. 02017_ Acquired 20 matter. 02030_ System corrupted: Matter fused (-6). 02034_ Critical hit (Burn: +37). 02042_ G-47 Trooper destroyed. Map ----- +----------------------------------------------------+ | | | | | | | | | | | | | | | | | | | | | | | | | ?????????????????????????????????????????? | | ?????????????????????????????????????????? | | ?????????????????????????????????????????? | | ?????????????????????????????????????????? | | ???????????????????????####??????????????? | | ??????????????????????## ##?????????????? | | ??????????????????????# ##????????????? | | ??????#####??????????## ####?????????? | | ??????# ??????????# ###???????? | | ???????? ?????????# ##??????? | | ??????#?? ?????????# #??????? | | ??????# ???????## #??????? | | ??????????# [ ###### #??????? | | ??????????# *%= @ !* #??????? | | ??????????# g =|== #??????? | | ??????????# #######% ! ##??????? | | ??????????######??????# ] ##??????? | | ?????????????????????## ! ! ##?????? | | ?????????????????????# % ####### | | ?????????????????????# # ## # | | ?????????????????????# # # | | ????????????????????# | | ????????????????? ####### | | ???????????????? # ? # * = | | ???????????????? | | ??????????????? ?##### # | | ??????????????? # ?????## | | ??????????????### ## ??????## ## | | ????????????????# ??## ???????## ### # | | ????????????????#????##????????# #?### | | ???????????????????????????????# # ??## | | ???????????????????????????????# ## ??? | | ???????????????????????????????# ## ??? | | ???????????????????????????????# ## ??? | | ??????????????????????????????? ?# ??? | | ?????????????????????????????? ?# ??? | | ??????????????????????????????####??# ??? | | ????????????????????????????????????? ???? | +----------------------------------------------------+ Best States ------------- Heat Dissipation 25 Energy Generation 18 Energy Capacity 310 Matter Stores 300 Matter Capacity 300 Sight Range 16 Terrain Scan Density 10 Armor Coverage 150 Evasion (%) 50 Recoil Reduction 2 Item Schematics ----------------- None Robot Schematics ------------------ None Fabricated ------------ Nothing Alien Tech Used ----------------- None Achievements -------------- None Challenges ------------ None Game ------ Seed HybridStasisNanovents Manual? 0 Play Time 00:30:11 Cumulative 10.5 hours Start 2024.05.15 @ 12:08:57 End 2024.05.15 @ 12:40:48 Sessions 1 Manual Loads 0 Difficulty Rogue Special Mode None Game No. 14 Rogue 14 Adventurer 0 Explorer 0 Win Type - Total 0 Types 0/0/0/0/0/0/0/0/0 Lore% 14 Gallery% 17 Achievement% 15 Wizard Run 0 Options --------- Layout 1 ASCII 0 Keyboard 0 Movement Mouse Keybinds 0 Fullscreen 1 Font 32/Terminus Map View 50x35 Zoom Use 0% Tactical HUD 1 Map Filters NONE Filters NONE Steam 1 RUN: 38b0c0bf-75df-4eb1-bccd-2f84fdfd84cf